Workbook

Sheet Ресурсное обеспечение
A1: Приложение 2 к постановлению администрации города Усолье-Сибирское от 26.12.2025 №2444-па Приложение 3 к муниципальной программе города Усолье-Сибирское «Молодёжная политика» на 2019-2027 годы
A2: Ресурсное обеспечение реализации муниципальной программы города Усолье-Сибирское «Молодёжная политика» на 2019-2027 годы
A3: Наименование программы, подпрограммы, основного мероприятия, мероприятия, проекта | B3: Ответственный исполнитель Программы, соисполнители Программы, участники Программы, участники Подпрограммы | C3: Источник финансирования | D3: Общий объем финансирования, руб. | E3: Объём финансирования, руб.
E4: 2019 год | F4: 2020 год | G4: 2021 год | H4: 2022 год | I4: 2023 год | J4: 2024 год | K4: 2025 год | L4: 2026 год | M4: 2027 год
A6: 1 | B6: 2 | C6: 3 | D6: 4 | E6: 5 | F6: 6 | G6: 7 | H6: 8 | I6: 9 | J6: 10 | K6: 11 | L6: 12 | M6: 13
A7: Муниципальная программа «Молодёжная политика» на 2019-2027 годы | B7: Отдел спорта и молодёжной политики управления по социально-культурным вопросам | C7: Всего: | D7: =SUM(E7:M7) -> 114,888,256.92 | E7: =SUM(E8:E10) -> 447,243.25 | F7: 326,648.63 | G7: =SUM(G8:G10) -> 17,272,509.18 | H7: 23,575,860.03 | I7: =SUM(I8:I10) -> 23,595,555.66 | J7: =SUM(J8:J10) -> 17,976,223.92 | K7: =SUM(K8:K10) -> 17,914,036.03 | L7: 6,890,090.11 | M7: 6,890,090.11
C8: Местный бюджет | D8: =SUM(E8:M8) -> 45,332,099.10 | E8: =SUM(E12+E36+E46+E51) -> 447,243.25 | F8: =SUM(F12+F36+F46+F51) -> 326,648.63 | G8: =SUM(G12+G36+G46+G51) -> 4,783,992.31 | H8: =SUM(H12+H36+H46+H51) -> 5,790,090.11 | I8: =SUM(I12+I36+I46+I51) -> 7,060,327.58 | J8: =SUM(J12+J36+J46+J51) -> 6,843,667.90 | K8: =SUM(K12+K36+K46+K51) -> 6,299,949.10 | L8: =SUM(L12+L36+L46+L51) -> 6,890,090.11 | M8: =SUM(M12+M36+M46+M51) -> 6,890,090.11
C9: Областной бюджет | D9: =SUM(E9:M9) -> 52,293,566.34 | E9: =SUM(E52) -> 0.00 | F9: =SUM(F52) -> 0.00 | G9: =SUM(G35+G52) -> 7,951,812.47 | H9: =SUM(H52) -> 13,184,799.49 | I9: 12,646,339.25 | J9: 8,938,622.13 | K9: 9,571,993.00 | L9: 0.00 | M9: 0.00
C10: Федеральный бюджет | D10: =SUM(E10:M10) -> 17,262,591.48 | E10: =SUM(E53) -> 0.00 | F10: =SUM(F53) -> 0.00 | G10: =SUM(G53) -> 4,536,704.40 | H10: 4,600,970.43 | I10: 3,888,888.83 | J10: =SUM(J53) -> 2,193,933.89 | K10: 2,042,093.93 | L10: 0.00 | M10: 0.00
A11: Подпрограмма 1 «Молодёжь города Усолье-Сибирское» на 2019-2027 годы | B11: Отдел спорта и молодёжной политики управления по социально-культурным вопросам | C11: Всего: | D11: 1,372,555.17 | E11: =SUM(E12:E13) -> 307,971.25 | F11: 219,744.28 | G11: 275,685.92 | H11: 96,052.00 | I11: 98,139.54 | J11: =SUM(J12:J13) -> 87,667.64 | K11: =SUM(K12:K13) -> 95,390.54 | L11: 95,952.00 | M11: 95,952.00
C12: Местный бюджет | D12: 1,178,989.17 | E12: =SUM(E14+E16+E17+E24+E31+E32) -> 307,971.25 | F12: =SUM(F14+F16+F24+F31+F32) -> 219,744.28 | G12: =SUM(G14+G16+G17+G24+G31+G32+G34) -> 82,119.92 | H12: =SUM(H14+H16+H17+H24+H31+H32+H34) -> 96,052.00 | I12: =SUM(I14+I16+I17+I24+I31+I32+I34) -> 98,139.54 | J12: =SUM(J14+J16+J17+J24+J31+J32+J34) -> 87,667.64 | K12: 95,390.54 | L12: 95,952.00 | M12: 95,952.00
C13: Областной бюджет | D13: 193,566.00 | E13: 0.00 | F13: 0.00 | G13: =SUM(G35) -> 193,566.00 | H13: 0.00 | I13: 0.00 | J13: 0.00 | K13: 0.00 | L13: 0.00 | M13: 0.00
A14: Основное мероприятие 1.1 «Содействие профессиональной ориентации молодёжи» | B14: Отдел спорта и молодёжной политики управления по социально-культурным вопросам | C14: Местный бюджет | D14: =E14+F14+G14+H14+I14+L14+J14+K14+M14 -> 7,437.50 | E14: =E15 -> 1,700.00 | F14: =SUM(F15) -> 0.00 | G14: =SUM(G15) -> 1,000.00 | H14: =H15 -> 2,500.00 | I14: =I15 -> 2,237.50 | J14: =J15 -> 0.00 | K14: 0.00 | L14: 0.00 | M14: 0.00
A15: Мероприятие 1.1.1 «Проведение ярмарки профессиональных образовательных организаций «Я выбираю будущее!» | B15: Отдел спорта и молодёжной политики управления по социально-культурным вопросам | C15: Местный бюджет | D15: =E15+F15+G15+H15+I15+L15+J15+K15+M15 -> 7,437.50 | E15: 1,700.00 | F15: 0.00 | G15: 1,000.00 | H15: 2,500.00 | I15: 2,237.50 | J15: 0.00 | K15: 0.00 | L15: 0.00 | M15: 0.00
A16: Основное мероприятие 1.2. «Проведение городских мероприятий по вопросам гражданского, патриотического и духовно-нравственного воспитания» | B16: Отдел спорта и молодёжной политики управления по социально-культурным вопросам | C16: Местный бюджет | D16: =SUM(E16:M16) -> 79,330.91 | E16: 50,750.00 | F16: 28,580.91 | G16: 0.00 | H16: 0.00 | I16: 0.00 | J16: 0.00 | K16: 0.00 | L16: 0.00 | M16: 0.00
A17: Основное мероприятие 1.2 «Создание условий для содержательного досуга, развития эстетического воспитания и молодёжного творчества» | B17: Отдел спорта и молодёжной политики управления по социально-культурным вопросам | C17: Местный бюджет | D17: 506,227.81 | E17: 0.00 | F17: 0.00 | G17: =SUM(G18:G23) -> 46,523.59 | H17: =SUM(H18:H23) -> 76,100.00 | I17: 78,450.04 | J17: =SUM(J18:J23) -> 70,215.64 | K17: 77,938.54 | L17: 78,500.00 | M17: 78,500.00
A18: Мероприятие 1.2.1 «Организация праздников, семинаров, форумов, конкурсов для творческой молодёжи» | B18: Отдел спорта и молодёжной политики управления по социально-культурным вопросам | C18: Местный бюджет | D18: 11,523.59 | E18: 0.00 | F18: 0.00 | G18: 11,523.59 | H18: 0.00 | I18: 0.00 | J18: 0.00 | K18: 0.00 | L18: 0.00 | M18: 0.00
A19: Мероприятие 1.2.2 «Поддержка талантливой молодёжи города» | C19: Местный бюджет | D19: 446,993.38 | E19: 0.00 | F19: 0.00 | G19: 35,000.00 | H19: 70,000.00 | I19: 69,958.30 | J19: 62,085.84 | K19: =70000-50.76 -> 69,949.24 | L19: 70,000.00 | M19: 70,000.00
A20: Мероприятие 1.2.3 «Участие победителей городских конкурсов, спортивных соревнований в областных мероприятиях» | C20: Местный бюджет | D20: 0.00 | E20: 0.00 | F20: 0.00 | G20: 0.00 | H20: 0.00 | I20: 0.00 | J20: 0.00 | K20: 0.00 | L20: 0.00 | M20: 0.00
A21: Мероприятие 1.2.4 «Проведение торжественной церемонии посвящения в депутаты Молодёжного парламента при Думе города Усолье-Сибирское» | C21: Местный бюджет | D21: 0.00 | E21: 0.00 | F21: 0.00 | G21: 0.00 | H21: 0.00 | I21: 0.00 | J21: 0.00 | K21: 0.00 | L21: 0.00 | M21: 0.00
A22: Мероприятие 1.2.5 «Участие депутатов Молодёжного парламента при Думе города Усолье-Сибирское в летней городской спартакиаде» | C22: Местный бюджет | D22: 0.00 | E22: 0.00 | F22: 0.00 | G22: 0.00 | H22: 0.00 | I22: 0.00 | J22: 0.00 | K22: 0.00 | L22: 0.00 | M22: 0.00
A23: Мероприятие 1.2.6 «Проведение городских мероприятий, конкурсов, акций депутатами Молодёжного парламента при Думе города Усолье-Сибирское» | C23: Местный бюджет | D23: 47,710.84 | E23: 0.00 | F23: 0.00 | G23: 0.00 | H23: 6,100.00 | I23: 8,491.74 | J23: 8,129.80 | K23: =8500-510.7 -> 7,989.30 | L23: 8,500.00 | M23: 8,500.00
A24: Основное мероприятие 1.3 «Создание условий для содержательного досуга, развития эстетического воспитания и молодёжного творчества» | B24: Отдел спорта и молодёжной политики управления по социально-культурным вопросам | C24: Местный бюджет | D24: 421,595.62 | E24: =SUM(E25:E30) -> 230,432.25 | F24: =F25+F26+F27+F28+F29+F30 -> 191,163.37 | G24: 0.00 | H24: 0.00 | I24: 0.00 | J24: 0.00 | K24: 0.00 | L24: 0.00 | M24: 0.00
A25: Мероприятие 1.3.1 «Организация праздников, семинаров, форумов, конкурсов для творческой молодежи» | B25: Отдел спорта и молодёжной политики управления по социально-культурным вопросам | D25: 198,370.10 | E25: 76,241.97 | F25: 122,128.13 | G25: 0.00 | H25: 0.00 | I25: 0.00 | J25: 0.00 | K25: 0.00 | L25: 0.00 | M25: 0.00
A26: Мероприятие 1.3.2 «Вручение стипендии мэра лучшим студентам учебных заведений города» | D26: 75,229.00 | E26: 40,229.00 | F26: 35,000.00 | G26: 0.00 | H26: 0.00 | I26: 0.00 | J26: 0.00 | K26: 0.00 | L26: 0.00 | M26: 0.00
A27: Мероприятие 1.3.3 «Участие победителей городских конкурсов, спортивных соревнований в областных мероприятиях» | D27: 30,706.99 | E27: 18,760.00 | F27: 11,946.99 | G27: 0.00 | H27: 0.00 | I27: 0.00 | J27: 0.00 | K27: 0.00 | L27: 0.00 | M27: 0.00
A28: Мероприятие 1.3.4 «Проведение торжественной церемонии посвящения в депутаты Молодёжного парламента при Думе города Усолье-Сибирское» | D28: 0.00 | E28: 0.00 | F28: 0.00 | G28: 0.00 | H28: 0.00 | I28: 0.00 | J28: 0.00 | K28: 0.00 | L28: 0.00 | M28: 0.00
A29: Мероприятие 1.3.5 «Участие депутатов Молодёжного парламента при Думе города Усолье-Сибирское в летней городской спартакиаде» | D29: 2,740.00 | E29: 2,740.00 | F29: 0.00 | G29: 0.00 | H29: 0.00 | I29: 0.00 | J29: 0.00 | K29: 0.00 | L29: 0.00 | M29: 0.00
A30: Мероприятие 1.3.6 «Проведение городских мероприятий, конкурсов, акций депутатами Молодёжного парламента при Думе города Усолье-Сибирское» | D30: 114,549.53 | E30: 92,461.28 | F30: 22,088.25 | G30: 0.00 | H30: 0.00 | I30: 0.00 | J30: 0.00 | K30: 0.00 | L30: 0.00 | M30: 0.00
A31: Основное мероприятие 1.3 «Проведение мероприятий для молодых семей. Оказание психологических и иных консультационных услуг» | B31: Отдел спорта и молодёжной политики управления по социально-культурным вопросам | C31: Местный бюджет | D31: 117,801.00 | E31: 0.00 | F31: 0.00 | G31: 13,089.00 | H31: 17,452.00 | I31: 17,452.00 | J31: 17,452.00 | K31: 17,452.00 | L31: 17,452.00 | M31: 17,452.00
A32: Основное мероприятие 1.4 «Проведение мероприятий для молодых семей. Оказание психологических и иных консультационных услуг» | B32: Отдел спорта и молодёжной политики управления по социально-культурным вопросам | C32: Местный бюджет | D32: 25,089.00 | E32: 25,089.00 | F32: 0.00 | G32: 0.00 | H32: 0.00 | I32: 0.00 | J32: 0.00 | K32: 0.00 | L32: 0.00 | M32: 0.00
A33: Основное мероприятие 1.4 «Создание благоприятных условий для всестороннего развития молодежи» | B33: Отдел спорта и молодёжной политики управления по социально-культурным вопросам | C33: Всего: | D33: 215,073.33 | E33: 0.00 | F33: 0.00 | G33: =SUM(G34:G35) -> 215,073.33 | H33: 0.00 | I33: 0.00 | J33: 0.00 | K33: 0.00 | L33: 0.00 | M33: 0.00
C34: Местный бюджет | D34: 21,507.33 | E34: 0.00 | F34: 0.00 | G34: 21,507.33 | H34: 0.00 | I34: 0.00 | J34: 0.00 | K34: 0.00 | L34: 0.00 | M34: 0.00
C35: Обласной бюджет | D35: 193,566.00 | E35: 0.00 | F35: 0.00 | G35: 193,566.00 | H35: 0.00 | I35: 0.00 | J35: 0.00 | K35: 0.00 | L35: 0.00 | M35: 0.00
A36: Подпрограмма 2 «Комплексные меры профилактики злоупотребления наркотическими средствами и психотропными веществами» на 2019-2027 годы | B36: Отдел спорта и молодёжной политики управления по социально-культурным вопросам | C36: Местный бюджет | D36: =E36+F36+G36+H36+I36+L36+J36+K36+M36 -> 1,299,479.17 | E36: =E37+E38+E39+E43 -> 139,272.00 | F36: =F37+F38+F39+F43 -> 106,904.35 | G36: =SUM(G37+G38+G39+G43) -> 97,217.12 | H36: =H37+H39+H43+H38 -> 96,208.75 | I36: 92,336.19 | J36: 188,992.81 | K36: 192,583.95 | L36: 192,982.00 | M36: 192,982.00
A37: Основное мероприятие 2.1 «Наружная социальная реклама о доступных мерах профилактики наркомании" | B37: Отдел спорта и молодёжной политики управления по социально-культурным вопросам | C37: Местный бюджет | D37: 31,571.04 | E37: 7,094.00 | F37: 7,094.00 | G37: 3,908.04 | H37: =2500-1000 -> 1,500.00 | I37: 2,237.50 | J37: 2,237.50 | K37: 2,500.00 | L37: 2,500.00 | M37: 2,500.00
A38: Основное мероприятие 2.2 «Информирование населения города о первичных мерах профилактики наркомании» | B38: Отдел спорта и молодёжной политики управления по социально-культурным вопросам | C38: Местный бюджет | D38: 27,300.00 | E38: 5,500.00 | F38: 5,500.00 | G38: 3,000.00 | H38: =2000+1000 -> 3,000.00 | I38: 2,000.00 | J38: 2,300.00 | K38: 2,000.00 | L38: 2,000.00 | M38: 2,000.00
A39: Основное мероприятие 2.3 «Организация и проведение комплекса мероприятий по профилактике социально-негативных явлений для несовершеннолетних и молодёжи (Первичная профилактика)» | B39: Отдел спорта и молодёжной политики управления по социально-культурным вопросам | C39: Местный бюджет | D39: 388,685.56 | E39: =E40+E41 -> 51,952.00 | F39: 28,763.77 | G39: =SUM(G40:G42) -> 31,705.00 | H39: =H40+H41+H42 -> 50,782.75 | I39: =I40+I41+I42 -> 47,909.65 | J39: =J40+J41+J42 -> 41,000.26 | K39: =K40+K41+K42 -> 45,336.13 | L39: 45,618.00 | M39: 45,618.00
A40: Мероприятие 2.3.1 «Организация комплекса мероприятий (семинаров, тренингов, круглых столов и т.д.) по профилактике социально-негативных явлений среди обучающихся в образовательных организациях силами привлеченных исполнителей» | B40: Отдел спорта и молодёжной политики управления по социально-культурным вопросам | D40: 191,972.00 | E40: 17,452.00 | F40: 0.00 | G40: 17,452.00 | H40: 26,178.00 | I40: 26,178.00 | J40: 26,178.00 | K40: 26,178.00 | L40: 26,178.00 | M40: 26,178.00
A41: Мероприятие 2.3.2 «Организация проведения акций, конкурсов, массовых мероприятий по профилактике социально-негативных явлений и социально-значимых заболеваний в подростковой и молодёжной среде» | D41: 163,445.01 | E41: 34,500.00 | F41: 28,763.77 | G41: 14,253.00 | H41: 19,604.75 | I41: 14,095.10 | J41: 10,134.26 | K41: =14100-205.87 -> 13,894.13 | L41: 14,100.00 | M41: 14,100.00
A42: Мероприятие 2.3.3 «Поддержка Антинаркотического волонтерского движения» | D42: 33,268.55 | E42: 0.00 | F42: 0.00 | G42: 0.00 | H42: 5,000.00 | I42: =7638.98-2.43 -> 7,636.55 | J42: 4,688.00 | K42: =5340-76 -> 5,264.00 | L42: 5,340.00 | M42: 5,340.00
A43: Основное мероприятие 2.4 «Развитие системы раннего выявления незаконных потребителей наркотиков (Вторичная профилактика)» | B43: Отдел спорта и молодёжной политики управления по социально-культурным вопросам | C43: Местный бюджет | D43: 851,922.57 | E43: =E44+E45 -> 74,726.00 | F43: 65,546.58 | G43: 58,604.08 | H43: 40,926.00 | I43: 40,189.04 | J43: =J44+J45 -> 143,455.05 | K43: 142,747.82 | L43: 142,864.00 | M43: 142,864.00
A44: Мероприятие 2.4.1 «Приобретение тест-систем на определение наркотиков в организме человека» | D44: 782,114.57 | E44: 66,000.00 | F44: 65,546.58 | G44: 49,878.08 | H44: 32,200.00 | I44: 31,463.04 | J44: 134,729.05 | K44: =134138-116.18 -> 134,021.82 | L44: 134,138.00 | M44: 134,138.00
A45: Мероприятие 2.4.2 «Организация индивидуальной работы специалистами-психологами по оказанию адресной психологической помощи» | D45: 69,808.00 | E45: 8,726.00 | F45: 0.00 | G45: 8,726.00 | H45: 8,726.00 | I45: 8,726.00 | J45: 8,726.00 | K45: 8,726.00 | L45: 8,726.00 | M45: 8,726.00
A46: Подпрограмма 3 «Военно-патриотическое воспитание молодёжи» на 2021-2027 годы | B46: Отдел спорта и молодёжной политики управления по социально-культурным вопросам | C46: Местный бюджет | D46: =SUM(D47:D49) -> 133,831.56 | E46: 0.00 | F46: 0.00 | G46: =SUM(G47:G49) -> 20,838.00 | H46: 14,002.48 | I46: 17,204.25 | J46: 28,839.63 | K46: 18,288.74 | L46: 17,329.23 | M46: 17,329.23
A47: Основное мероприятие 3.1 «Проведение городских мероприятий по вопросам гражданского, патриотического и духовно-нравственного воспитания» | B47: Отдел спорта и молодёжной политики управления по социально-культурным вопросам | D47: =SUM(E47:M47) -> 59,016.22 | E47: 0.00 | F47: 0.00 | G47: 6,000.00 | H47: 7,450.00 | I47: 9,192.05 | J47: 8,788.80 | K47: =9229.23-102.32 -> 9,126.91 | L47: 9,229.23 | M47: 9,229.23
A48: Основное мероприятие 3.2 «Проведение мероприятий допризывной подготовки молодежи» | B48: Отдел спорта и молодёжной политики управления по социально-культурным вопросам | D48: =SUM(E48:M48) -> 60,478.84 | E48: 0.00 | F48: 0.00 | G48: 14,838.00 | H48: 5,250.00 | I48: 5,195.60 | J48: 18,098.91 | K48: =5250-232.08+1578.41 -> 6,596.33 | L48: 5,250.00 | M48: 5,250.00
A49: Основное мероприятие 3.3 «Проведение мероприятий для детей и молодежи по профилактике экстремизма» | B49: Отдел спорта и молодёжной политики управления по социально-культурным вопросам | D49: =SUM(E49:M49) -> 14,336.50 | E49: 0.00 | F49: 0.00 | G49: 0.00 | H49: 1,302.48 | I49: 2,816.60 | J49: 1,951.92 | K49: =2850-284.5 -> 2,565.50 | L49: 2,850.00 | M49: 2,850.00
A50: Подпрограмма 4 «Обеспечение жильем молодых семей» на 2021-2027 годы | B50: Отдел спорта и молодёжной политики управления по социально-культурным вопросам администрации города | C50: Всего: | D50: =SUM(E50:M50) -> 112,082,391.02 | E50: =SUM(E51:E53) -> 0.00 | F50: =SUM(F51:F53) -> 0.00 | G50: =G51+G52+G53 -> 16,878,768.14 | H50: =SUM(H51:H53) -> 23,369,596.80 | I50: 23,387,875.68 | J50: 17,670,723.84 | K50: 17,607,772.80 | L50: 6,583,826.88 | M50: 6,583,826.88
C51: Местный бюджет | D51: =SUM(E51:M51) -> 42,719,799.20 | E51: =E55+E59 -> 0.00 | F51: =F55+F59 -> 0.00 | G51: =G55+G59 -> 4,583,817.27 | H51: 5,583,826.88 | I51: 6,852,647.60 | J51: =J55+J59 -> 6,538,167.82 | K51: 5,993,685.87 | L51: 6,583,826.88 | M51: 6,583,826.88
C52: Областной бюджет | D52: =E52+F52+G52+H52+I52+L52+J52+K52+M52 -> 52,100,000.34 | E52: =E56+E60 -> 0.00 | F52: =F56+F60 -> 0.00 | G52: =G56+G60+G64 -> 7,758,246.47 | H52: =H56+H60+H64 -> 13,184,799.49 | I52: 12,646,339.25 | J52: =J56+J60 -> 8,938,622.13 | K52: 9,571,993.00 | L52: 0.00 | M52: 0.00
C53: Федеральный бюджет | D53: =SUM(E53:M53) -> 17,262,591.48 | E53: =E57+E61 -> 0.00 | F53: =F57+F61 -> 0.00 | G53: 4,536,704.40 | H53: 4,600,970.43 | I53: 3,888,888.83 | J53: =J57+J61 -> 2,193,933.89 | K53: 2,042,093.93 | L53: 0.00 | M53: 0.00
A54: Основное мероприятие 4.1 «Предоставление молодым семьям - участникам подпрограммы социальных выплат на приобретение (строительство) жилья» | B54: Отдел спорта и молодёжной политики управления по социально-культурным вопросам администрации города | C54: Всего: | D54: =E54+F54+G54+H54+I54+L54+J54+K54+M54 -> 111,266,636.90 | E54: =E55+E56+E57 -> 0.00 | F54: 0.00 | G54: =G55+G56+G57 -> 16,548,074.42 | H54: =H55+H56+H57 -> 22,884,536.40 | I54: 23,387,875.68 | J54: =J55+J56+J57 -> 17,670,723.84 | K54: 17,607,772.80 | L54: 6,583,826.88 | M54: 6,583,826.88
C55: Местный бюджет | D55: =E55+F55+G55+H55+I55+L55+J55+K55+M55 -> 42,719,799.20 | E55: 0.00 | F55: 0.00 | G55: =4583816.36+0.91 -> 4,583,817.27 | H55: 5,583,826.88 | I55: =6582407.7+270239.9 -> 6,852,647.60 | J55: 6,538,167.82 | K55: =6583826.88-590141.01 -> 5,993,685.87 | L55: 6,583,826.88 | M55: 6,583,826.88
C56: Областной бюджет | D56: =E56+F56+G56+H56+I56+L56+J56+K56+M56 -> 51,284,246.22 | E56: 0.00 | F56: 0.00 | G56: 7,427,552.75 | H56: 12,699,739.09 | I56: =12147620.24+498719.01 -> 12,646,339.25 | J56: 8,938,622.13 | K56: 9,571,993.00 | L56: 0.00 | M56: 0.00
C57: Федеральный бюджет | D57: =SUM(E57:M57) -> 17,262,591.48 | E57: 0.00 | F57: 0.00 | G57: 4,536,704.40 | H57: 4,600,970.43 | I57: =3735527.26+153361.57 -> 3,888,888.83 | J57: 2,193,933.89 | K57: 2,042,093.93 | L57: 0.00 | M57: 0.00
A58: Основное мероприятие 4.2 «Предоставление молодым семьям - участникам Подпрограммы социальных выплат на мероприятия по улучшению жилищных условий» (Субсидии местным бюджетам на мероприятия по улучшению жилищных условий молодых семей) | B58: Отдел спорта и молодёжной политики управления по социально-культурным вопросам администрации города | C58: Всего: | D58: =E58+F58+G58+H58+I58+L58+J58+K58+M58 -> 0.00 | E58: 0.00 | F58: 0.00 | G58: =G59+G60+G61 -> 0.00 | H58: 0.00 | I58: 0.00 | J58: =J59+J60+J61 -> 0.00 | K58: 0.00 | L58: 0.00 | M58: 0.00
C59: Местный бюджет | D59: =E59+F59+G59+H59+I59+L59+J59+K59+M59 -> 0.00 | E59: 0.00 | F59: 0.00 | G59: =G60+G61+G66 -> 0.00 | H59: 0.00 | I59: 0.00 | J59: 0.00 | K59: 0.00 | L59: 0.00 | M59: 0.00
C60: Областной бюджет | D60: =E60+F60+G60+H60+I60+L60+J60+K60+M60 -> 0.00 | E60: 0.00 | F60: 0.00 | G60: =G61+G66+G67 -> 0.00 | H60: 0.00 | I60: 0.00 | J60: 0.00 | K60: 0.00 | L60: 0.00 | M60: 0.00
C61: Федеральный бюджет | D61: =E61+F61+G61+H61+I61+L61+J61+K61+M61 -> 0.00 | E61: 0.00 | F61: 0.00 | G61: =G66+G67+G68 -> 0.00 | H61: 0.00 | I61: 0.00 | J61: 0.00 | K61: 0.00 | L61: 0.00 | M61: 0.00
A62: Основное мероприятие 4.3 «Дополнительная социальная выплата за счет средств областного бюджета при рождении (усыновлении) ребенка» | B62: Отдел спорта и молодёжной политики управления по социально-культурным вопросам администрации города | C62: Всего: | D62: =D63+D65+D64 -> 815,754.12 | E62: 0.00 | F62: 0.00 | G62: =G63+G64+G65 -> 330,693.72 | H62: =H63+H64+H65 -> 485,060.40 | I62: 0.00 | J62: =J63+J64+J65 -> 0.00 | K62: 0.00 | L62: 0.00 | M62: 0.00
C63: Местный бюджет | D63: =E63+F63+G63+H63+I63+L63+J63+K63+M63 -> 0.00 | E63: 0.00 | F63: 0.00 | G63: 0.00 | H63: 0.00 | I63: 0.00 | J63: =J64+J65+J70 -> 0.00 | K63: =K64+K65+K70 -> 0.00 | L63: =L64+L65+L70 -> 0.00 | M63: =M64+M65+M70 -> 0.00
C64: Областной бюджет | D64: =E64+F64+G64+H64+I64+L64+J64+K64+M64 -> 815,754.12 | E64: 0.00 | F64: 0.00 | G64: 330,693.72 | H64: 485,060.40 | I64: 0.00 | J64: =J65+J70+J71 -> 0.00 | K64: =K65+K70+K71 -> 0.00 | L64: =L65+L70+L71 -> 0.00 | M64: =M65+M70+M71 -> 0.00
C65: Федеральный бюджет | D65: =E65+F65+G65+H65+I65+L65+J65+K65+M65 -> 0.00 | E65: 0.00 | F65: 0.00 | G65: =G70+G71+G72 -> 0.00 | H65: 0.00 | I65: 0.00 | J65: 0.00 | K65: 0.00 | L65: 0.00 | M65: 0.00
A66: Мэр города М.В. Торопкин
